[Event "5th Cesme Open 2017"]
[Site "Cesme"]
[Date "2017.06.17"]
[Round "8.12"]
[White "Arat, Ufuk Sezen"]
[Black "Ozenir, Ekin Baris"]
[Result "1-0"]
[ECO "A62"]
[WhiteElo "2398"]
[BlackElo "2127"]
[Annotator "ChessBase"]
[PlyCount "117"]
[EventType "swiss"]
[EventCountry "TUR"]
[SourceTitle "playchess.com"]
[Source "ChessBase"]
[SourceQuality "1"]
[TimeControl "5400+30"]

1. d4 Nf6 2. c4 e6 3. g3 c5 4. d5 exd5 5. cxd5 d6 6. Nf3 g6 7. Bg2 Bg7 8. Nc3 O-O 9. O-O Re8 10. Bf4 a6 11. a4 Qc7 {[%emt 0:15:00]} 12. Nd2 {[%emt 0:34:00]} Nh5 {[%emt 0:02:30]} 13. Bg5 {[%emt 0:00:30]} h6 {[%emt 0:03:30]} 14. Be3 {[%emt 0:03:30]} Nd7 {[%emt 0:02:30]} 15. g4 {[%emt 0:07:30]} Nhf6 {[%emt 0:02:30]} 16. h3 {[%emt 0:05:30]} Rxe3 {[%emt 0:14:30]} 17. fxe3 {[%emt 0:00:30]} Ne5 {[%emt 0:00:30]} 18. Qc2 {[%emt 0:05:30]} Qe7 {[%emt 0:02:30]} 19. Nce4 {[%emt 0:02:30]} Nxd5 {[%emt 0:04:30]} 20. Nc3 {[%emt 0:08:30]} Nxe3 {[%emt 0:06:30]} 21. Nd5 {[%emt 0:01:30]} Nxd5 {[%emt 0:00:00]} 22. Bxd5 {[%emt 0:00:30]} Be6 {[%emt 0:08:00]} 23. Qe4 {[%emt 0:01:30]} Bxd5 {[%emt 0:03:30]} 24. Qxd5 {[%emt 0:00:00]} Re8 {[%emt 0:00:30]} 25. Ra3 {[%emt 0:06:00]} b5 {[%emt 0:11:30]} 26. axb5 {[%emt 0:00:30]} axb5 {[%emt 0:00:30]} 27. Ra8 {[%emt 0:02:30]} Rxa8 {[%emt 0:02:30]} 28. Qxa8+ {[%emt 0:00:00]} Kh7 {[%emt 0:00:00]} 29. Qd5 {[%emt 0:02:00]} h5 {[%emt 0:01:00]} 30. Nf3 {[%emt 0:05:09]} hxg4 {[%emt 0:01:30]} 31. hxg4 {[%emt 0:01:52]} Nxf3+ {[%emt 0:02:30]} 32. Qxf3 {[%emt 0:00:01]} Bd4+ {[%emt 0:00:30]} 33. Kg2 {[%emt 0:04:57]} Kg7 {[%emt 0:00:30]} 34. b3 {[%emt 0:00:24]} b4 {[%emt 0:00:30]} 35. e3 {[%emt 0:01:58]} Be5 {[%emt 0:00:30]} 36. Qd5 {[%emt 0:00:44]} Qe6 {[%emt 0:01:41]} 37. Qxe6 {[%emt 0:00:09]} fxe6 {[%emt 0:00:03]} 38. g5 {[%emt 0:01:16]} d5 {[%emt 0:04:33]} 39. Kf3 {[%emt 0:00:01]} c4 {[%emt 0:01:25]} 40. Rb1 {[%emt 0:03:22]} Bd6 {[%emt 0:02:15]} 41. bxc4 {[%emt 0:02:15]} dxc4 {[%emt 0:00:08]} 42. Ke4 {[%emt 0:01:07]} Bc5 {[%emt 0:01:03]} 43. Rd1 {[%emt 0:01:24]} c3 {[%emt 0:03:16]} 44. Rd7+ {[%emt 0:00:52]} Kf8 {[%emt 0:00:00]} 45. Kd3 {[%emt 0:00:55]} Be7 {[%emt 0:00:46]} 46. Rb7 {[%emt 0:00:02]} Bxg5 {[%emt 0:00:33]} 47. Rxb4 {[%emt 0:00:01]} Bf6 {[%emt 0:00:26]} 48. Rb7 {[%emt 0:00:51]} Ke8 {[%emt 0:01:38]} 49. e4 {[%emt 0:00:01]} g5 {[%emt 0:00:26]} 50. Rb5 {[%emt 0:01:26]} Kf7 {[%emt 0:04:08]} 51. e5 {[%emt 0:00:01]} Bg7 {[%emt 0:00:37]} 52. Rc5 {[%emt 0:00:48]} g4 {[%emt 0:00:35]} 53. Ke4 {[%emt 0:00:28]} Kg6 {[%emt 0:00:23]} 54. Rxc3 {[%emt 0:00:37]} Kg5 {[%emt 0:00:10]} 55. Rc7 {[%emt 0:00:04]} Bh6 {[%emt 0:01:34]} 56. Rf7 {[%emt 0:00:56]} Kh4 {[%emt 0:00:49]} 57. Rf6 {[%emt 0:00:56]} Bg5 {[%emt 0:00:18]} 58. Rxe6 {[%emt 0:01:17]} g3 {[%emt 0:02:21]} 59. Kf3 {[%emt 0:00:00]} 1-0

[Event "5th Cesme Open 2017"]
[Site "Cesme"]
[Date "2017.06.17"]
[Round "8.13"]
[White "Sevgi, Volkan"]
[Black "Rzayev, Bahruz"]
[Result "0-1"]
[ECO "E14"]
[WhiteElo "2192"]
[BlackElo "2392"]
[Annotator "RC"]
[PlyCount "50"]
[EventType "swiss"]
[EventCountry "TUR"]
[SourceTitle "playchess.com"]
[Source "ChessBase"]
[SourceQuality "1"]
[TimeControl "5400+30"]

1. d4 Nf6 2. Nf3 c5 3. e3 b6 4. Be2 Bb7 5. c4 e6 6. Nc3 cxd4 7. exd4 d6 8. Bg5 Be7 9. Qa4+ Nbd7 10. O-O O-O 11. Rfd1 h6 12. Bf4 a6 13. b4 {[%emt 0:32:30]} d5 {[%emt 0:14:00]} 14. cxd5 {[%emt 0:07:30]} Nxd5 {[%emt 0:00:30]} 15. Nxd5 {[%emt 0:00:30]} Bxd5 {[%emt 0:00:30]} 16. Ne5 {[%emt 0:01:30]} b5 {[%emt 0:01:30]} 17. Qa3 {[%emt 0:00:30]} g5 {[%emt 0:11:30]} 18. Qg3 {[%emt 0:07:30]} Kh8 {[%emt 0:02:30]} 19. Qh3 {[%emt 0:04:30]} Kg7 {[%emt 0:00:30]} 20. Bd2 {[%emt 0:01:30]} f5 {[%emt 0:05:30]} 21. a4 {[%emt 0:10:30]} bxa4 {[%emt 0:10:30]} 22. Rxa4 {[%emt 0:00:30]} Nxe5 {[%emt 0:01:30]} 23. dxe5 {[%emt 0:00:30]} Qd7 {[%emt 0:02:30]} 24. Qa3 {[%emt 0:03:30]} a5 {[%emt 0:00:30]} 25. Ra1 {[%emt 0:08:30]} Bc6 {[%emt 0:01:30]} 0-1

[Event "5th Cesme Open 2017"]
[Site "Cesme"]
[Date "2017.06.17"]
[Round "8.14"]
[White "Yildiz, Betul Cemre"]
[Black "Seyhanoglu, Deniz"]
[Result "1-0"]
[ECO "B41"]
[WhiteElo "2350"]
[BlackElo "2043"]
[Annotator "NA"]
[PlyCount "101"]
[EventType "swiss"]
[EventCountry "TUR"]
[SourceTitle "playchess.com"]
[Source "ChessBase"]
[SourceQuality "1"]
[TimeControl "5400+30"]

1. e4 {[%emt 0:00:30]} c5 {[%emt 0:06:00]} 2. Nf3 {[%emt 0:00:00]} e6 {[%emt 0:00:30]} 3. d4 {[%emt 0:00:00]} cxd4 {[%emt 0:00:00]} 4. Nxd4 {[%emt 0:00:00]} a6 {[%emt 0:00:00]} 5. c4 {[%emt 0:00:00]} Nf6 {[%emt 0:00:00]} 6. Nc3 {[%emt 0:00:00]} Qc7 {[%emt 0:00:00]} 7. a3 {[%emt 0:00:00]} b6 {[%emt 0:00:30]} 8. Be3 {[%emt 0:00:30]} Bb7 {[%emt 0:04:30] B41: Sicilian: Kan Variation: 5 c4} 9. f3 {[%emt 0:00:30]} Nc6 {[%emt 0:00:30]} 10. Rc1 {[%emt 0:05:30]} Nxd4 {[%emt 0:00:30]} 11. Qxd4 {[%emt 0:03:30]} Bc5 {[%emt 0:00:30]} 12. Qd2 {[%emt 0:00:30] LiveBook: 3 Games} Bxe3 {[%emt 0:05:30]} 13. Qxe3 {[%emt 0:00:00]} Qc5 {[%emt 0:03:30] [#]} 14. Qxc5 $146 {[%emt 0:07:00]} ({Predecessor:} 14. Qf2 d6 15. Be2 a5 16. Nb5 {0-1 (53) Ganguly,S (2583)-Kamsky,G (2700) Philadelphia 2005}) 14... bxc5 {[%emt 0:01:30]} 15. e5 {[%emt 0:17:30]} Nh5 {[%emt 0:30:00]} 16. Na4 {[%emt 0:00:30]} Rc8 {[%emt 0:00:30]} 17. Rc3 {[%emt 0:00:30]} Ke7 {[%emt 0:10:30]} 18. Kf2 {[%emt 0:18:30]} Rc7 {[%emt 0:13:30]} 19. Ke3 {[%emt 0:05:30]} g5 {[%emt 0:12:30]} 20. Rb3 {[%emt 0:02:30]} Nf4 {[%emt 0:10:30]} ({Black should play} 20... Rb8 $11) 21. Nxc5 {[%emt 0:07:30]} (21. h4 $16) 21... Rxc5 {[%emt 0:00:00]} 22. Rxb7 {[%emt 0:00:00]} Rxe5+ {[%emt 0:00:00]} 23. Kf2 {[%emt 0:00:00]} a5 {[%emt 0:01:30]} 24. g3 {[%emt 0:03:30]} Ng6 {[%emt 0:00:30]} ({Better is} 24... Nh5 $14) 25. Be2 {[%emt 0:00:00]} Ra8 {[%emt 0:05:44]} 26. Rd1 {[%emt 0:04:00]} Nf8 $1 {[%emt 0:00:02]} 27. b3 {[%emt 0:00:30]} Kd8 {[%emt 0:03:45]} 28. Rd3 {[%emt 0:07:30]} Kc8 {[%emt 0:00:17]} 29. Rb6 {[%emt 0:00:00]} Kc7 {[%emt 0:01:25]} 30. Rbd6 {[%emt 0:00:00]} Rb8 {[%emt 0:00:42]} 31. Bd1 {[%emt 0:06:30]} Rc5 {[%emt 0:01:04]} 32. Ke3 {[%emt 0:01:30]} Rc6 {[%emt 0:01:32]} 33. Rxc6+ {[%emt 0:04:30]} Kxc6 {[%emt 0:00:41]} 34. Kd4 {[%emt 0:00:30]} d6 {[%emt 0:02:46]} 35. Kc3 {[%emt 0:00:30]} Kc5 {[%emt 0:01:07]} 36. Rd2 {[%emt 0:00:30]} Nd7 {[%emt 0:03:23]} 37. Rb2 {[%emt 0:02:30]} Kc6 {[%emt 0:01:16]} 38. Ra2 {[%emt 0:01:30]} Nb6 {[%emt 0:02:30]} 39. b4 {[%emt 0:03:30]} axb4+ {[%emt 0:00:11]} 40. axb4 {[%emt 0:00:00]} Ra8 {[%emt 0:03:57]} 41. Rxa8 $16 {[%emt 0:08:00] stays on course.} (41. Ba4+ $2 {[%emt 0:00:00][%mdl 8192]}) 41... Nxa8 {[%emt 0:00:31]} 42. Ba4+ {[%emt 0:00:30]} Kc7 {[%emt 0:00:35]} 43. c5 {[%emt 0:00:30]} (43. Be8) 43... dxc5 {[%emt 0:00:31]} 44. bxc5 {[%emt 0:00:30]} Kd8 {[%emt 0:00:32]} 45. Kb4 {[%emt 0:00:30]} Nc7 {[%emt 0:00:30]} 46. Bc6 {[%emt 0:00:30]} e5 {[%emt 0:00:30]} 47. Be4 {[%emt 0:00:30]} h6 {[%emt 0:00:30]} 48. Ka5 {[%emt 0:00:30]} Ne6 {[%emt 0:00:30]} 49. Kb6 {[%emt 0:00:30]} Ke7 {[%emt 0:00:30]} 50. Bd5 {[%emt 0:00:30]} Nd8 {[%emt 0:00:21]} 51. c6 $18 {[%emt 0:00:58]} 1-0

[Event "5th Cesme Open 2017"]
[Site "Cesme"]
[Date "2017.06.17"]
[Round "8.15"]
[White "Kerem, Halil Ozgun"]
[Black "Rahmanov, Shahriyar"]
[Result "1/2-1/2"]
[ECO "A04"]
[WhiteElo "2050"]
[BlackElo "2353"]
[Annotator "NA"]
[PlyCount "170"]
[EventType "swiss"]
[EventCountry "TUR"]
[SourceTitle "playchess.com"]
[Source "ChessBase"]
[SourceQuality "1"]
[TimeControl "5400+30"]

1. Nf3 {[%emt 0:00:30]} Nf6 {[%emt 0:03:00]} 2. g3 {[%emt 0:00:00]} c5 {[%emt 0:07:30]} 3. Bg2 {[%emt 0:01:00]} Nc6 {[%emt 0:00:00]} 4. O-O {[%emt 0:00:30]} e5 {[%emt 0:04:00]} 5. e4 {[%emt 0:01:30]} Be7 {[%emt 0:00:30]} 6. Nc3 {[%emt 0:01:30]} O-O {[%emt 0:00:30]} 7. d3 {[%emt 0:00:30]} d6 {[%emt 0:01:30]} 8. Nd2 {[%emt 0:00:30] A04: Unusual lines after 1 Nf3 and King's Indian Attack} (8. Kh1 Bd7 9. Ng1 Nd4 10. f4 exf4 11. gxf4 Bc6 12. Nce2 Nxe2 13. Nxe2 Re8 14. c4 b5 15. b3 Rb8 {1-0 (39) Aronian,L (2793)-Karjakin,S (2781) Stavanger 2017}) 8... Nd4 {[%emt 0:03:30]} (8... Bg4 $11 9. f3 Be6) 9. a4 {[%emt 0:07:30]} Bg4 $146 {[%emt 0:01:30]} ({Predecessor:} 9... Ne8 10. Nc4 Rb8 11. Nd5 f5 12. f4 exf4 13. Bxf4 Bg5 14. c3 Nc6 15. Qh5 Bxf4 16. Rxf4 {1-0 (44) Cobb,J (2335)-Bates,R (2345) Edinburgh 1997}) 10. f3 {[%emt 0:01:30]} Be6 {[%emt 0:00:00]} 11. Nc4 {[%emt 0:01:30]} h6 {[%emt 0:30:00]} 12. Ne3 {[%emt 0:29:00]} d5 {[%emt 0:44:30]} 13. f4 {[%emt 0:06:30]} dxe4 {[%emt 0:04:02]} 14. f5 {[%emt 0:03:30]} Bc8 {[%emt 0:11:50]} 15. dxe4 {[%emt 0:02:30]} (15. Nxe4 $18 Rb8 16. Nxf6+ Bxf6 17. Be4) 15... b6 {[%emt 0:00:00]} 16. Ncd5 {[%emt 0:00:30]} Ba6 {[%emt 0:01:53]} 17. Rf2 {[%emt 0:10:30]} c4 {[%emt 0:00:00]} 18. Nxf6+ {[%emt 0:00:30]} Bxf6 {[%emt 0:00:11]} 19. Nd5 {[%emt 0:00:30]} Bb7 {[%emt 0:00:30]} 20. Be3 {[%emt 0:03:30]} Bxd5 $1 {[%emt 0:06:30]} 21. exd5 {[%emt 0:00:30]} Bg5 {[%emt 0:00:01]} 22. Bxd4 {[%emt 0:03:30]} exd4 {[%emt 0:00:07]} 23. Qxd4 {[%emt 0:00:30]} Re8 {[%emt 0:00:45]} 24. Rf3 {[%emt 0:02:30]} Qd6 {[%emt 0:01:05]} 25. Qxc4 {[%emt 0:00:30]} Rac8 {[%emt 0:00:07]} 26. Qd3 {[%emt 0:01:30]} Qc5+ {[%emt 0:00:48]} 27. Kf1 {[%emt 0:00:30]} Qb4 {[%emt 0:01:07]} 28. b3 {[%emt 0:02:30]} Re5 {[%emt 0:00:01]} 29. h4 {[%emt 0:01:30]} (29. Rd1 $16) 29... Bf6 {[%emt 0:00:44]} 30. Rd1 {[%emt 0:01:30]} Rce8 {[%emt 0:00:14]} 31. Kg1 {[%emt 0:00:30]} Qc5+ {[%emt 0:00:59]} 32. Kh2 {[%emt 0:00:30]} Re3 {[%emt 0:00:29] [#]} 33. Rxe3 {[%emt 0:01:30]} ({Better is} 33. Qc4 $1 $16) 33... Rxe3 {[%emt 0:00:02]} 34. Qc4 $1 {[%emt 0:00:30]} Qe7 {[%emt 0:01:04]} (34... Qxc4 $14 35. bxc4 Be5) 35. d6 {[%emt 0:00:30]} Qe5 {[%emt 0:00:20]} 36. Qf4 {[%emt 0:00:30]} Qxf4 {[%emt 0:00:20]} 37. gxf4 {[%emt 0:00:30]} Bxh4 {[%emt 0:00:19]} 38. d7 {[%emt 0:01:30]} ({White should try} 38. Rd4) 38... Bd8 {[%emt 0:00:02]} 39. Kg1 {[%emt 0:03:30]} Kf8 {[%emt 0:00:15]} 40. Kf2 {[%emt 0:00:30]} Rc3 {[%emt 0:00:13]} 41. Be4 {[%emt 0:00:30]} Ke7 {[%emt 0:00:28]} 42. Rg1 {[%emt 0:06:30]} Kf6 {[%emt 0:01:15]} 43. Rd1 {[%emt 0:01:30]} Rc7 {[%emt 0:00:47]} 44. Rd6+ {[%emt 0:00:30]} Ke7 {[%emt 0:00:10]} 45. f6+ {[%emt 0:00:30]} gxf6 {[%emt 0:00:24]} 46. Rd1 {[%emt 0:00:00]} Rxd7 {[%emt 0:01:17]} 47. Rxd7+ {[%emt 0:00:00]} Kxd7 {[%emt 0:00:01]} 48. f5 {[%emt 0:00:30]} Kd6 {[%emt 0:00:18]} 49. Kg3 {[%emt 0:00:30]} Ke5 {[%emt 0:00:37]} 50. Bd3 {[%emt 0:00:30]} Bc7 {[%emt 0:01:04]} 51. Kg4 {[%emt 0:00:00]} Kd4 {[%emt 0:00:30]} 52. Bc4 {[%emt 0:00:00]} Kc3 {[%emt 0:00:34]} 53. Bd3 {[%emt 0:00:30]} Kd2 {[%emt 0:00:23]} 54. Be4 {[%emt 0:00:30]} a5 {[%emt 0:00:19]} 55. Bd3 {[%emt 0:00:00]} Be5 {[%emt 0:00:26]} 56. Be4 {[%emt 0:00:00]} Ke3 {[%emt 0:00:26]} 57. Bd3 {[%emt 0:00:30]} Bc3 {[%emt 0:00:27]} 58. Kh5 {[%emt 0:00:30]} Kf4 {[%emt 0:01:04]} 59. Kxh6 {[%emt 0:00:30]} Ke5 {[%emt 0:00:00]} 60. Kg7 {[%emt 0:00:00]} Kd6 {[%emt 0:00:12]} 61. Kxf7 {[%emt 0:00:00]} Kd7 {[%emt 0:00:26]} 62. Bb5+ {[%emt 0:00:30]} Kd6 {[%emt 0:00:00]} 63. Ke8 {[%emt 0:00:00]} Be5 {[%emt 0:00:25]} 64. Kf7 {[%emt 0:00:00]} Bc3 {[%emt 0:00:08]} 65. Kg6 {[%emt 0:00:30]} Ke5 {[%emt 0:00:11]} 66. Bd3 {[%emt 0:00:00]} Kd6 {[%emt 0:00:08]} 67. Kh5 {[%emt 0:00:00]} Ke5 {[%emt 0:00:03]} 68. Kg4 {[%emt 0:00:00]} Kd4 {[%emt 0:00:20]} 69. Kf3 {[%emt 0:00:00]} Bd2 {[%emt 0:00:09]} 70. Ke2 {[%emt 0:00:30]} Bf4 {[%emt 0:00:19]} 71. Kd1 {[%emt 0:00:30]} Kc3 {[%emt 0:00:25]} 72. Be4 {[%emt 0:00:00]} Kd4 {[%emt 0:00:06]} 73. Bd3 {[%emt 0:00:00]} Kc3 {[%emt 0:00:05]} 74. Ke2 {[%emt 0:00:00]} Kd4 {[%emt 0:00:02]} 75. Kf3 {[%emt 0:00:00]} Bd2 {[%emt 0:00:02]} 76. Kg4 {[%emt 0:00:00]} Ke5 {[%emt 0:00:03]} 77. Kh5 {[%emt 0:00:00]} Bc3 {[%emt 0:00:03]} 78. Kg6 {[%emt 0:00:00]} Kd6 {[%emt 0:00:05]} 79. Kf7 {[%emt 0:00:00]} Kd7 {[%emt 0:00:18]} 80. Bb5+ {[%emt 0:00:30]} Kd6 {[%emt 0:00:05]} 81. Ke8 {[%emt 0:00:30]} Be5 {[%emt 0:00:17]} 82. Kd8 {[%emt 0:00:30]} Bc3 {[%emt 0:00:17]} 83. Kc8 {[%emt 0:00:00]} Be5 {[%emt 0:00:03]} 84. Kb7 {[%emt 0:00:00]} Kc5 {[%emt 0:00:07]} 85. Bd3 {[%emt 0:00:30]} Bc3 $11 {[%emt 0:00:23]} 1/2-1/2

[Event "5th Cesme Open 2017"]
[Site "Cesme"]
[Date "2017.06.17"]
[Round "8.16"]
[White "Lomsadze, Davit"]
[Black "Grigoriev, Armen"]
[Result "0-1"]
[ECO "E67"]
[WhiteElo "2341"]
[BlackElo "2105"]
[Annotator "NA"]
[PlyCount "80"]
[EventType "swiss"]
[EventCountry "TUR"]
[SourceTitle "playchess.com"]
[Source "ChessBase"]
[SourceQuality "1"]
[TimeControl "5400+30"]

{[%evp 19,76,8,13,-12,42,-40,-22,-44,-43,-96,-95,-96,-95,-96,-101,-100,-90,-130,-131,-131,-169,-103,-175,-104,-124,-133,-133,-185,-54,-158,-137,-143,-29,-35,-35,-52,-30,-39,-37,-38,32767,-48,-52,-50,32767,-56,32767,-64,-68,-362,32767,32767,32767,32767,32767,32767,32767,32767,-330]} 1. g3 {[%emt 0:07:30]} Nf6 {[%emt 0:01:00]} 2. Bg2 {[%emt 0:00:30]} g6 {[%emt 0:00:00]} 3. Nf3 {[%emt 0:00:30]} Bg7 {[%emt 0:00:00]} 4. O-O {[%emt 0:00:00]} O-O {[%emt 0:00:30]} 5. d4 {[%emt 0:00:00]} d6 {[%emt 0:00:00]} 6. c4 {[%emt 0:00:30]} Nbd7 {[%emt 0:00:00]} 7. Nc3 {[%emt 0:00:30]} e5 {[%emt 0:00:30]} 8. e3 {[%emt 0:00:30]} c6 {[%emt 0:00:30]} 9. b3 {[%emt 0:01:30]} Re8 {[%emt 0:03:30]} 10. a4 {[%emt 0:05:30]} a5 {[%emt 0:04:30]} 11. Ba3 {[%emt 0:02:30] E67: King's Indian: Fianchetto: 6...Nbd7} Bf8 {[%emt 0:02:30]} 12. dxe5 $146 {[%emt 0:05:30]} (12. d5 $14) ({Predecessor:} 12. Qc2 Qc7 13. Rfd1 Be7 14. Rac1 Nf8 15. dxe5 dxe5 16. Bxe7 Qxe7 17. Nd2 Bf5 18. Qb2 Rad8 19. Nce4 Nxe4 20. Nxe4 Bxe4 21. Bxe4 f6 22. Qc3 Qc5 23. h4 Kg7 24. Bf3 Ne6 {0-1 (24) Roiz,M (2544)-Becerra Rivero,J (2569) Internet 2004}) 12... dxe5 {[%emt 0:02:30]} 13. Bxf8 {[%emt 0:05:30]} Kxf8 {[%emt 0:16:00]} 14. Qc2 {[%emt 0:30:00]} (14. Ng5 $15) 14... Nc5 {[%emt 0:01:30]} 15. Ng5 {[%emt 0:01:30]} Bf5 {[%emt 0:02:30]} 16. e4 {[%emt 0:00:30]} Bd7 {[%emt 0:01:30]} 17. Rad1 {[%emt 0:04:30]} Qe7 {[%emt 0:02:30]} 18. f4 {[%emt 0:03:30]} Bg4 {[%emt 0:03:30]} 19. Rd2 {[%emt 0:11:30]} h6 {[%emt 0:05:30]} 20. fxe5 {[%emt 0:00:30]} Qxe5 {[%emt 0:00:30]} 21. Rxf6 {[%emt 0:00:30]} Qxg5 {[%emt 0:01:30]} 22. Rdf2 {[%emt 0:01:30]} Re7 {[%emt 0:01:30]} 23. h3 {[%emt 0:14:30] [#]} Be6 $2 {[%emt 0:02:30]} ({Black should try} 23... Bf5 $1 $19 {[%mdl 512]} 24. exf5 Qxf6 25. fxg6 Qd4) 24. Nd5 {[%emt 0:03:30]} ({Better is} 24. Kh2) 24... cxd5 {[%emt 0:05:30]} 25. cxd5 {[%emt 0:04:30] [#]} Nxe4 $1 {[%emt 0:06:30]} 26. Qxe4 {[%emt 0:02:30]} Bf5 $1 {[%emt 0:06:30]} 27. Qh4 $1 {[%emt 0:00:30]} Qxh4 {[%emt 0:04:30]} 28. gxh4 {[%emt 0:00:30]} Ra6 {[%emt 0:02:30]} 29. Rxa6 {[%emt 0:00:00]} bxa6 {[%emt 0:00:30]} 30. Rd2 {[%emt 0:06:38]} Re3 {[%emt 0:02:30]} 31. d6 {[%emt 0:00:22]} Ke8 {[%emt 0:02:30]} 32. Bd5 {[%emt 0:02:42]} Rg3+ {[%emt 0:02:30]} 33. Kf2 {[%emt 0:00:56]} Rxh3 {[%emt 0:00:30]} 34. Bc4 $2 {[%emt 0:03:18]} (34. Rd4 $17 {is a better defense.}) 34... Rxh4 {[%emt 0:08:30]} 35. Kg3 {[%emt 0:02:56]} Rg4+ {[%emt 0:08:41]} 36. Kf3 {[%emt 0:00:42]} h5 {[%emt 0:01:40]} 37. Bxa6 {[%emt 0:01:00]} Be6 {[%emt 0:00:16]} 38. Bb5+ {[%emt 0:00:52]} Kd8 $19 {[%emt 0:03:52]} 39. d7 {[%emt 0:00:20]} Bxb3 {[%emt 0:00:29]} 40. Re2 {[%emt 0:05:26]} Bd1 {[%emt 0:03:37]} 0-1

[Event "5th Cesme Open 2017"]
[Site "Cesme"]
[Date "2017.06.17"]
[Round "8.17"]
[White "Bilyap, Enis"]
[Black "Gokerkan, Cem Kaan"]
[Result "1-0"]
[ECO "A48"]
[WhiteElo "2017"]
[BlackElo "2333"]
[Annotator "NA"]
[PlyCount "61"]
[EventType "swiss"]
[EventCountry "TUR"]
[SourceTitle "playchess.com"]
[Source "ChessBase"]
[SourceQuality "1"]
[TimeControl "5400+30"]

{[%evp 19,61,0,24,10,21,0,0,-24,8,5,11,9,36,43,42,22,42,47,52,25,48,4,118,126,102,148,551,600,580,613,32767,651,574,32767,32767,32767,864,32767,872,956,32767,32767,32767,587]} 1. d4 {[%emt 0:00:30]} Nf6 {[%emt 0:09:00]} 2. Bf4 {[%emt 0:00:00]} g6 {[%emt 0:03:30]} 3. Nf3 {[%emt 0:00:00]} Bg7 {[%emt 0:00:30]} 4. e3 {[%emt 0:00:30]} O-O {[%emt 0:00:30]} 5. Be2 {[%emt 0:00:30]} d6 {[%emt 0:01:30]} 6. h3 {[%emt 0:00:00]} Nc6 {[%emt 0:00:30]} 7. O-O {[%emt 0:00:00]} Nd7 {[%emt 0:00:30]} 8. c3 {[%emt 0:03:30] A48: 1 d4 Nf6 2 Nf3 g6: Torre, London and Colle Systems} e5 {[%emt 0:00:30]} 9. Bh2 {[%emt 0:00:00]} f5 {[%emt 0:00:30]} 10. dxe5 {[%emt 0:04:00]} (10. a4 Qe7 11. Na3 Nd8 12. dxe5 Nxe5 13. Nc4 Nxf3+ 14. Bxf3 Nf7 {½-½ (23) Tomashevsky,E (2711)-Salem,A (2656) Sharjah 2017}) 10... dxe5 {[%emt 0:00:30]} 11. Nbd2 {[%emt 0:00:30]} Kh8 {[%emt 0:03:30]} 12. Nc4 {[%emt 0:06:30]} Qe7 {[%emt 0:01:30]} 13. Qc2 {[%emt 0:02:30]} g5 {[%emt 0:25:00]} 14. Rad1 {[%emt 0:22:00]} Nb6 $146 {[%emt 0:11:30]} ({Predecessor:} 14... e4 15. Nd4 {1-0 (24) Gralka,P (2285)-Bobras,P (2355) Augustow 1996}) 15. a4 {[%emt 0:13:30]} f4 {[%emt 0:03:30]} 16. Nxb6 {[%emt 0:05:30]} axb6 {[%emt 0:00:30]} 17. Bd3 {[%emt 0:00:30]} h5 {[%emt 0:04:30]} 18. exf4 {[%emt 0:02:30]} exf4 {[%emt 0:00:30]} 19. Rfe1 {[%emt 0:04:30]} Qf6 $1 {[%emt 0:00:30]} 20. Qe2 {[%emt 0:02:30]} Qh6 {[%emt 0:10:30]} (20... Rxa4 $11 {keeps the balance.} 21. Ne5 Nxe5 22. Qxh5+ Qh6 23. Qxh6+ Bxh6 24. Rxe5 Rd8) 21. h4 {[%emt 0:07:30]} g4 {[%emt 0:18:30]} 22. Ng5 {[%emt 0:00:00]} Rxa4 $2 {[%emt 0:05:30] [#]} (22... Ne5 {is tougher.}) 23. Qe8 $1 {[%emt 0:16:00]} Kg8 {[%emt 0:01:30]} 24. Bc2 {[%emt 0:00:30]} Rc4 {[%emt 0:13:48]} 25. Bb3 {[%emt 0:01:30]} b5 {[%emt 0:00:01]} 26. Bxc4+ {[%emt 0:03:30]} bxc4 {[%emt 0:00:01]} 27. Qe4 {[%emt 0:00:30]} Be5 {[%emt 0:03:28]} 28. Qd5+ {[%emt 0:01:30]} Kg7 {[%emt 0:00:38]} 29. Rxe5 {[%emt 0:00:30]} Nxe5 {[%emt 0:00:29]} 30. Qxe5+ {[%emt 0:00:00]} Qf6 {[%emt 0:00:06]} 31. Bxf4 $18 {[%emt 0:01:00]} (31. Qxc7+ $142 Rf7 32. Nxf7 Qxf7 33. Qxc8) 1-0